[Event "Early-Titled-Tuesday-Blitz-July-09-2024"]
[Site "Chess.com"]
[Date "2024.07.09"]
[Round "6"]
[White "KnightmareJoker"]
[Black "Dewarfd"]
[Result "0-1"]
[WhiteElo "2303"]
[BlackElo "2087"]
[TimeControl "180+1"]
[EndTime "9:10:25 PDT"]
[Termination "Dewarfd won by checkmate"]

1. e4 {[%clk 0:03:00.9]} 1... c5 {[%clk 0:02:57.5]} 2. Nc3 {[%clk 0:03:01.2]}
2... g6 {[%clk 0:02:50.8]} 3. Nge2 {[%clk 0:03:01.2]} 3... Nc6 {[%clk
0:02:47.9]} 4. d4 {[%clk 0:03:01.4]} 4... cxd4 {[%clk 0:02:48.5]} 5. Nxd4 {[%clk
0:03:01.9]} 5... Bg7 {[%clk 0:02:48.7]} 6. Be3 {[%clk 0:03:02.2]} 6... Nf6
{[%clk 0:02:48.3]} 7. Bc4 {[%clk 0:03:02.4]} 7... O-O {[%clk 0:02:47.8]} 8. Bb3
{[%clk 0:03:03]} 8... d5 {[%clk 0:02:42.2]} 9. exd5 {[%clk 0:02:50.5]} 9... Na5
{[%clk 0:02:41.2]} 10. Qd2 {[%clk 0:02:34.5]} 10... Nxb3 {[%clk 0:02:38]} 11.
Nxb3 {[%clk 0:02:35.4]} 11... b5 {[%clk 0:02:37.2]} 12. Rd1 {[%clk 0:02:31.5]}
12... b4 {[%clk 0:02:34.2]} 13. Ne2 {[%clk 0:02:26.4]} 13... Bf5 {[%clk
0:02:31]} 14. Ng3 {[%clk 0:02:06.6]} 14... Be4 {[%clk 0:02:10.2]} 15. Nxe4
{[%clk 0:01:42.8]} 15... Nxe4 {[%clk 0:02:11.1]} 16. Qxb4 {[%clk 0:01:37.6]}
16... Nd6 {[%clk 0:02:11]} 17. c3 {[%clk 0:01:34.1]} 17... a5 {[%clk 0:02:10.5]}
18. Qa4 {[%clk 0:01:24.2]} 18... Nf5 {[%clk 0:01:51.6]} 19. Bc5 {[%clk
0:01:11.5]} 19... Qc7 {[%clk 0:01:44.5]} 20. O-O {[%clk 0:01:09.8]} 20... Rfb8
{[%clk 0:01:41.5]} 21. Rfe1 {[%clk 0:00:56.1]} 21... Rxb3 {[%clk 0:01:37.1]} 22.
Qxb3 {[%clk 0:00:50.7]} 22... Qxc5 {[%clk 0:01:37.2]} 23. Qb7 {[%clk 0:00:50.3]}
23... Rc8 {[%clk 0:01:27.8]} 24. h3 {[%clk 0:00:37.4]} 24... Bf8 {[%clk
0:01:25]} 25. Qb3 {[%clk 0:00:35.7]} 25... Nd6 {[%clk 0:01:23.1]} 26. Qc2 {[%clk
0:00:31.5]} 26... Qc4 {[%clk 0:01:19.3]} 27. a3 {[%clk 0:00:27.6]} 27... Qf4
{[%clk 0:01:02.9]} 28. Qd2 {[%clk 0:00:26.1]} 28... Qxd2 {[%clk 0:00:59.9]} 29.
Rxd2 {[%clk 0:00:26.8]} 29... Nc4 {[%clk 0:00:59.4]} 30. Rde2 {[%clk 0:00:26.7]}
30... a4 {[%clk 0:00:59]} 31. Rc1 {[%clk 0:00:20.4]} 31... Rb8 {[%clk
0:00:58.8]} 32. Rcc2 {[%clk 0:00:20.8]} 32... f6 {[%clk 0:00:55.8]} 33. g3
{[%clk 0:00:18.8]} 33... Kf7 {[%clk 0:00:55.9]} 34. Kg2 {[%clk 0:00:19.3]} 34...
Bh6 {[%clk 0:00:55.5]} 35. f4 {[%clk 0:00:19.4]} 35... Nd6 {[%clk 0:00:48.8]}
36. Kf3 {[%clk 0:00:18]} 36... g5 {[%clk 0:00:48.9]} 37. Re6 {[%clk 0:00:12.1]}
37... gxf4 {[%clk 0:00:47.7]} 38. Rce2 {[%clk 0:00:09.4]} 38... Bf8 {[%clk
0:00:46.8]} 39. Kxf4 {[%clk 0:00:05.7]} 39... Nc4 {[%clk 0:00:45.8]} 40. R6e4
{[%clk 0:00:05.1]} 40... Nxb2 {[%clk 0:00:42.1]} 41. Rb4 {[%clk 0:00:04.3]}
41... Nd3+ {[%clk 0:00:41.4]} 42. Ke4 {[%clk 0:00:05]} 42... Nxb4 {[%clk
0:00:41.9]} 43. cxb4 {[%clk 0:00:05.5]} 43... e6 {[%clk 0:00:40.3]} 44. dxe6+
{[%clk 0:00:05.6]} 44... Kxe6 {[%clk 0:00:41.2]} 45. Kd4+ {[%clk 0:00:06.5]}
45... Kf5 {[%clk 0:00:35.3]} 46. Rf2+ {[%clk 0:00:06.4]} 46... Kg6 {[%clk
0:00:34.7]} 47. Kc4 {[%clk 0:00:05.9]} 47... Bd6 {[%clk 0:00:32.2]} 48. Rf3
{[%clk 0:00:05.5]} 48... h5 {[%clk 0:00:27]} 49. Rd3 {[%clk 0:00:05.9]} 49...
Be5 {[%clk 0:00:26.9]} 50. g4 {[%clk 0:00:05]} 50... hxg4 {[%clk 0:00:26.5]} 51.
hxg4 {[%clk 0:00:05.3]} 51... Kg5 {[%clk 0:00:26.9]} 52. Kd5 {[%clk 0:00:05.7]}
52... Kxg4 {[%clk 0:00:25.6]} 53. Ke4 {[%clk 0:00:06.4]} 53... Rc8 {[%clk
0:00:22.6]} 54. Rd1 {[%clk 0:00:06.1]} 54... Rc4+ {[%clk 0:00:20.9]} 55. Kd5
{[%clk 0:00:06.7]} 55... Rc3 {[%clk 0:00:21.2]} 56. b5 {[%clk 0:00:06.3]} 56...
Rxa3 {[%clk 0:00:20.7]} 57. Rb1 {[%clk 0:00:06.7]} 57... Rb3 {[%clk 0:00:20.8]}
58. Rc1 {[%clk 0:00:03.9]} 58... Rxb5+ {[%clk 0:00:20.2]} 59. Kc6 {[%clk
0:00:04.1]} 59... Rb2 {[%clk 0:00:17.9]} 60. Rc4+ {[%clk 0:00:03.8]} 60... Bf4
{[%clk 0:00:14.7]} 61. Rxa4 {[%clk 0:00:04.5]} 61... f5 {[%clk 0:00:14.7]} 62.
Kd5 {[%clk 0:00:05]} 62... Re2 {[%clk 0:00:13.6]} 63. Ra8 {[%clk 0:00:03.9]}
63... Bg5 {[%clk 0:00:13.2]} 64. Rg8 {[%clk 0:00:04.2]} 64... f4 {[%clk
0:00:13.2]} 65. Kd4 {[%clk 0:00:04.9]} 65... f3 {[%clk 0:00:12.9]} 66. Kd3
{[%clk 0:00:05.2]} 66... Re3+ {[%clk 0:00:12.9]} 67. Kd4 {[%clk 0:00:05.6]}
67... Re7 {[%clk 0:00:12.9]} 68. Kd3 {[%clk 0:00:05.2]} 68... f2 {[%clk
0:00:12.3]} 69. Rf8 {[%clk 0:00:05.5]} 69... Kg3 {[%clk 0:00:12.5]} 70. Kd4
{[%clk 0:00:04.5]} 70... Bf4 {[%clk 0:00:12.7]} 71. Rg8+ {[%clk 0:00:04.7]}
71... Kf3 {[%clk 0:00:13.2]} 72. Kc3 {[%clk 0:00:03.7]} 72... f1=Q {[%clk
0:00:13.3]} 73. Rd8 {[%clk 0:00:04]} 73... Qa1+ {[%clk 0:00:12.1]} 74. Kc2
{[%clk 0:00:03.8]} 74... Rc7+ {[%clk 0:00:11.5]} 75. Kd3 {[%clk 0:00:04]} 75...
Qd1# {[%clk 0:00:11]} 0-1

[Event "Early-Titled-Tuesday-Blitz-July-09-2024"]
[Site "Chess.com"]
[Date "2024.07.09"]
[Round "6"]
[White "dretch"]
[Black "Sychev_Klementy"]
[Result "0-1"]
[WhiteElo "2882"]
[BlackElo "2956"]
[TimeControl "180+1"]
[EndTime "9:10:27 PDT"]
[Termination "Sychev_Klementy won by checkmate"]

1. d4 {[%clk 0:03:00.9]} 1... Nf6 {[%clk 0:02:59.5]} 2. c4 {[%clk 0:03:01.1]}
2... g6 {[%clk 0:02:59.7]} 3. Nc3 {[%clk 0:03:01.3]} 3... d5 {[%clk 0:03:00.2]}
4. e3 {[%clk 0:02:58.9]} 4... Bg7 {[%clk 0:02:59.9]} 5. Qb3 {[%clk 0:02:59.2]}
5... e6 {[%clk 0:02:59.8]} 6. Qa3 {[%clk 0:02:58.7]} 6... a5 {[%clk 0:02:58.6]}
7. Nf3 {[%clk 0:02:56.4]} 7... c6 {[%clk 0:02:56.4]} 8. b3 {[%clk 0:02:50.9]}
8... Ne4 {[%clk 0:02:46.2]} 9. Qb2 {[%clk 0:02:50.6]} 9... O-O {[%clk
0:02:40.3]} 10. Be2 {[%clk 0:02:50.3]} 10... c5 {[%clk 0:02:35.1]} 11. O-O
{[%clk 0:02:47.2]} 11... Nc6 {[%clk 0:02:35.1]} 12. Rd1 {[%clk 0:02:46.6]} 12...
b6 {[%clk 0:02:15.3]} 13. Bd2 {[%clk 0:02:36.3]} 13... cxd4 {[%clk 0:02:09.4]}
14. exd4 {[%clk 0:02:33.8]} 14... Nxd4 {[%clk 0:02:03.2]} 15. Nxd4 {[%clk
0:02:17.5]} 15... Nxf2 {[%clk 0:01:14.2]} 16. Kxf2 {[%clk 0:02:02.2]} 16...
Bxd4+ {[%clk 0:01:13.1]} 17. Kf1 {[%clk 0:02:01.2]} 17... Qf6+ {[%clk
0:01:09.2]} 18. Bf3 {[%clk 0:01:58.4]} 18... dxc4 {[%clk 0:00:46.7]} 19. Bg5
{[%clk 0:01:47]} 19... Qxg5 {[%clk 0:00:24.8]} 20. Rxd4 {[%clk 0:01:46.2]} 20...
cxb3 {[%clk 0:00:19.4]} 21. Bxa8 {[%clk 0:01:42.2]} 21... Ba6+ {[%clk
0:00:18.9]} 22. Kg1 {[%clk 0:01:42.2]} 22... Qe3+ {[%clk 0:00:18.5]} 23. Qf2
{[%clk 0:01:15.9]} 23... Qxc3 {[%clk 0:00:18.6]} 24. Rad1 {[%clk 0:01:16]} 24...
bxa2 {[%clk 0:00:14.4]} 25. Qxa2 {[%clk 0:00:50.5]} 25... Rxa8 {[%clk
0:00:14.4]} 26. Qf2 {[%clk 0:00:44.5]} 26... Rf8 {[%clk 0:00:13.8]} 27. Rd6
{[%clk 0:00:39.7]} 27... Bc4 {[%clk 0:00:11.8]} 28. Qxb6 {[%clk 0:00:34.9]}
28... Bd5 {[%clk 0:00:10.3]} 29. Rd8 {[%clk 0:00:21.5]} 29... Rxd8 {[%clk
0:00:07.1]} 30. Qxd8+ {[%clk 0:00:21.6]} 30... Kg7 {[%clk 0:00:07.7]} 31. Qb6
{[%clk 0:00:20.5]} 31... Qc2 {[%clk 0:00:05.5]} 32. Qd4+ {[%clk 0:00:19.6]}
32... Kg8 {[%clk 0:00:05.5]} 33. Rd2 {[%clk 0:00:19.1]} 33... Qc1+ {[%clk
0:00:05.9]} 34. Kf2 {[%clk 0:00:19.6]} 34... a4 {[%clk 0:00:05.5]} 35. h4 {[%clk
0:00:12.9]} 35... a3 {[%clk 0:00:05.5]} 36. h5 {[%clk 0:00:12.5]} 36... gxh5
{[%clk 0:00:04.9]} 37. Rd3 {[%clk 0:00:10]} 37... Qc2+ {[%clk 0:00:04.9]} 38.
Ke1 {[%clk 0:00:09.6]} 38... Qb1+ {[%clk 0:00:03.4]} 39. Kf2 {[%clk 0:00:09.1]}
39... Qb2+ {[%clk 0:00:03.7]} 40. Kg3 {[%clk 0:00:04]} 40... Qxg2+ {[%clk
0:00:03.7]} 41. Kf4 {[%clk 0:00:03]} 41... Qg4+ {[%clk 0:00:03.3]} 42. Ke5
{[%clk 0:00:03.4]} 42... Qg5+ {[%clk 0:00:02.6]} 43. Kd6 {[%clk 0:00:03.4]}
43... Qd8+ {[%clk 0:00:03.2]} 44. Kc5 {[%clk 0:00:01]} 44... Qe7+ {[%clk
0:00:03.5]} 45. Kb5 {[%clk 0:00:01]} 45... Qb7+ {[%clk 0:00:03.7]} 46. Ka5
{[%clk 0:00:01.2]} 46... Qa8+ {[%clk 0:00:03.6]} 47. Kb6 {[%clk 0:00:01]} 47...
Qb8+ {[%clk 0:00:03.4]} 48. Ka5 {[%clk 0:00:01.2]} 48... Qd8+ {[%clk 0:00:03.3]}
49. Ka6 {[%clk 0:00:01.2]} 49... Qa8+ {[%clk 0:00:03.3]} 50. Kb6 {[%clk
0:00:01.3]} 50... Qc6+ {[%clk 0:00:03.6]} 51. Ka5 {[%clk 0:00:01.8]} 51... Qc7+
{[%clk 0:00:04]} 52. Ka6 {[%clk 0:00:02.3]} 52... Qc4+ {[%clk 0:00:04.3]} 53.
Kb6 {[%clk 0:00:02.5]} 53... Qxd4+ {[%clk 0:00:04.7]} 54. Rxd4 {[%clk
0:00:03.4]} 54... a2 {[%clk 0:00:05.4]} 55. Ra4 {[%clk 0:00:03.9]} 55... h4
{[%clk 0:00:05.7]} 56. Kc5 {[%clk 0:00:04]} 56... h3 {[%clk 0:00:06.2]} 57. Kd6
{[%clk 0:00:04.6]} 57... h2 {[%clk 0:00:06.6]} 58. Ke7 {[%clk 0:00:04.2]} 58...
h1=Q {[%clk 0:00:06.8]} 59. Rg4+ {[%clk 0:00:04.3]} 59... Kh8 {[%clk 0:00:07.2]}
60. Kf8 {[%clk 0:00:04.4]} 60... h5 {[%clk 0:00:07.1]} 61. Rg8+ {[%clk
0:00:04.2]} 61... Kh7 {[%clk 0:00:07.6]} 62. Rg7+ {[%clk 0:00:03]} 62... Kh6
{[%clk 0:00:08.1]} 63. Kg8 {[%clk 0:00:03.7]} 63... h4 {[%clk 0:00:08.4]} 64.
Kh8 {[%clk 0:00:03.9]} 64... Kh5 {[%clk 0:00:08.7]} 65. Kh7 {[%clk 0:00:03.6]}
65... Be4+ {[%clk 0:00:08.2]} 66. Kh8 {[%clk 0:00:03.8]} 66... h3 {[%clk
0:00:08.8]} 67. Rg1 {[%clk 0:00:03.1]} 67... a1=Q+ {[%clk 0:00:08.6]} 68. Rg7
{[%clk 0:00:01.1]} 68... Qxg7+ {[%clk 0:00:07.7]} 69. Kxg7 {[%clk 0:00:01.4]}
69... h2 {[%clk 0:00:08.3]} 70. Kg8 {[%clk 0:00:01.1]} 70... Bf5 {[%clk
0:00:08.8]} 71. Kg7 {[%clk 0:00:01.4]} 71... Qg2+ {[%clk 0:00:09.1]} 72. Kh8
{[%clk 0:00:01.7]} 72... Qb2+ {[%clk 0:00:09.3]} 73. Kg8 {[%clk 0:00:01.8]}
73... Kg6 {[%clk 0:00:09.7]} 74. Kf8 {[%clk 0:00:01.6]} 74... Qh8+ {[%clk
0:00:09.9]} 75. Ke7 {[%clk 0:00:01.9]} 75... h1=Q {[%clk 0:00:10.4]} 76. Kd7
{[%clk 0:00:02.1]} 76... e5+ {[%clk 0:00:10.9]} 77. Kd6 {[%clk 0:00:02.1]} 77...
Qd1+ {[%clk 0:00:10.8]} 78. Ke7 {[%clk 0:00:02.6]} 78... Qhd8# {[%clk
0:00:10.5]} 0-1

[Event "Early-Titled-Tuesday-Blitz-July-09-2024"]
[Site "Chess.com"]
[Date "2024.07.09"]
[Round "6"]
[White "Pachonpower"]
[Black "glucolisis04"]
[Result "1-0"]
[WhiteElo "2469"]
[BlackElo "2300"]
[TimeControl "180+1"]
[EndTime "9:10:41 PDT"]
[Termination "Pachonpower won on time"]

1. d4 {[%clk 0:03:00.9]} 1... Nf6 {[%clk 0:03:00]} 2. Nf3 {[%clk 0:03:00.7]}
2... e6 {[%clk 0:02:59]} 3. Nbd2 {[%clk 0:03:00.4]} 3... c5 {[%clk 0:02:53.8]}
4. e3 {[%clk 0:03:00.5]} 4... Nc6 {[%clk 0:02:53.1]} 5. c3 {[%clk 0:02:59.4]}
5... b6 {[%clk 0:02:51.8]} 6. Bd3 {[%clk 0:02:59.3]} 6... Bb7 {[%clk 0:02:51.8]}
7. O-O {[%clk 0:02:59.8]} 7... Be7 {[%clk 0:02:47]} 8. Qe2 {[%clk 0:02:59.5]}
8... O-O {[%clk 0:02:38.7]} 9. dxc5 {[%clk 0:02:58.5]} 9... Bxc5 {[%clk
0:02:37.4]} 10. e4 {[%clk 0:02:58.3]} 10... e5 {[%clk 0:02:21.6]} 11. Nc4 {[%clk
0:02:55.6]} 11... Qc7 {[%clk 0:02:15.7]} 12. Bg5 {[%clk 0:02:49.9]} 12... Be7
{[%clk 0:02:12.4]} 13. Ne3 {[%clk 0:02:49]} 13... d6 {[%clk 0:02:04.4]} 14. Nf5
{[%clk 0:02:43.5]} 14... Bc8 {[%clk 0:01:51.7]} 15. Nxe7+ {[%clk 0:02:40.9]}
15... Qxe7 {[%clk 0:01:52.6]} 16. Rad1 {[%clk 0:02:38.9]} 16... Bg4 {[%clk
0:01:52.3]} 17. h3 {[%clk 0:02:38.6]} 17... Bh5 {[%clk 0:01:52.1]} 18. Rfe1
{[%clk 0:02:36]} 18... h6 {[%clk 0:01:40.1]} 19. Bh4 {[%clk 0:02:35.8]} 19... g5
{[%clk 0:01:39.3]} 20. Bg3 {[%clk 0:02:35.6]} 20... Bg6 {[%clk 0:01:33.3]} 21.
Nh2 {[%clk 0:02:25.1]} 21... Nh5 {[%clk 0:01:17.4]} 22. Ng4 {[%clk 0:02:22.4]}
22... Kg7 {[%clk 0:01:03.7]} 23. Bb5 {[%clk 0:02:21.9]} 23... Nd8 {[%clk
0:00:55.9]} 24. Qd3 {[%clk 0:02:00.9]} 24... f6 {[%clk 0:00:32.8]} 25. Qxd6
{[%clk 0:01:57.8]} 25... Qxd6 {[%clk 0:00:33.3]} 26. Rxd6 {[%clk 0:01:58.6]}
26... Nf7 {[%clk 0:00:33.4]} 27. Rd7 {[%clk 0:01:56.5]} 27... Rfd8 {[%clk
0:00:27.9]} 28. Rc7 {[%clk 0:01:54.3]} 28... a6 {[%clk 0:00:19.1]} 29. Bc4
{[%clk 0:01:54.2]} 29... b5 {[%clk 0:00:19.2]} 30. Bb3 {[%clk 0:01:53.8]} 30...
Rac8 {[%clk 0:00:19.7]} 31. Ra7 {[%clk 0:01:53.2]} 31... Ra8 {[%clk 0:00:19.8]}
32. Re7 {[%clk 0:01:50]} 32... Re8 {[%clk 0:00:18.7]} 33. Rd7 {[%clk 0:01:47.3]}
33... Red8 {[%clk 0:00:18.8]} 34. Red1 {[%clk 0:01:47.6]} 34... Nf4 {[%clk
0:00:06.5]} 35. Bxf4 {[%clk 0:01:45.4]} 35... gxf4 {[%clk 0:00:05.4]} 36. f3
{[%clk 0:01:39.7]} 36... Rxd7 {[%clk 0:00:03.7]} 37. Rxd7 {[%clk 0:01:40.6]}
37... Rd8 {[%clk 0:00:03.5]} 38. Ra7 {[%clk 0:01:39.3]} 38... Rd2 {[%clk
0:00:02.4]} 39. Nf2 {[%clk 0:01:35.5]} 39... Rxb2 {[%clk 0:00:02.4]} 40. Nd3
{[%clk 0:01:34.6]} 40... Rb1+ {[%clk 0:00:02.5]} 41. Kh2 {[%clk 0:01:34.5]}
41... h5 {[%clk 0:00:01]} 42. Nc5 {[%clk 0:01:34.7]} 42... h4 {[%clk 0:00:01.7]}
43. Ne6+ {[%clk 0:01:35]} 43... Kh6 {[%clk 0:00:01.2]} 44. Nf8 {[%clk
0:01:34.1]} 44... Ng5 {[%clk 0:00:02.1]} 45. Rxa6 {[%clk 0:01:28.7]} 45... Rb2
{[%clk 0:00:02.4]} 46. Kg1 {[%clk 0:01:25.2]} 46... Rb1+ {[%clk 0:00:01.8]} 47.
Kf2 {[%clk 0:01:25.1]} 47... Rb2+ {[%clk 0:00:02.7]} 48. Kf1 {[%clk 0:01:25]}
48... Rb1+ {[%clk 0:00:03]} 49. Ke2 {[%clk 0:01:25.4]} 49... Rb2+ {[%clk
0:00:03.4]} 50. Kd3 {[%clk 0:01:26.3]} 50... Rxg2 {[%clk 0:00:03.7]} 51. Rxf6
{[%clk 0:01:25.8]} 51... Rg3 {[%clk 0:00:04]} 52. Rxg6+ {[%clk 0:01:24.9]} 52...
Kh5 {[%clk 0:00:04.6]} 53. Bd1 {[%clk 0:01:21.1]} 53... Rxh3 {[%clk 0:00:04.3]}
54. Rg7 {[%clk 0:01:19.6]} 54... Kh6 {[%clk 0:00:04.6]} 55. Re7 {[%clk
0:01:17.6]} 55... Rh1 {[%clk 0:00:05]} 56. Kc2 {[%clk 0:01:16.3]} 56... h3
{[%clk 0:00:04]} 57. Rxe5 {[%clk 0:01:16.5]} 57... h2 {[%clk 0:00:02.9]} 58. Nd7
{[%clk 0:01:11.7]} 58... Rxd1 {[%clk 0:00:03]} 59. Kxd1 {[%clk 0:01:12.4]} 59...
h1=Q+ {[%clk 0:00:03]} 60. Kc2 {[%clk 0:01:13]} 60... Qg2+ {[%clk 0:00:03.7]}
61. Kb3 {[%clk 0:01:13]} 61... Qxf3 {[%clk 0:00:04]} 62. Nf6 {[%clk 0:01:05.4]}
62... Qd1+ {[%clk 0:00:04.2]} 63. Kb4 {[%clk 0:01:04.5]} 63... Nf3 {[%clk
0:00:04.1]} 64. Rd5 {[%clk 0:00:59.4]} 64... Qb1+ {[%clk 0:00:03.3]} 65. Kc5
{[%clk 0:00:59.9]} 65... Qg1+ {[%clk 0:00:02.5]} 66. Kxb5 {[%clk 0:00:58.8]}
66... Kg6 {[%clk 0:00:02.3]} 67. Nd7 {[%clk 0:00:54.5]} 67... Qb1+ {[%clk
0:00:02.5]} 68. Kc6 {[%clk 0:00:51.6]} 68... Kf7 {[%clk 0:00:02]} 69. Nc5 {[%clk
0:00:51.6]} 69... Qxa2 {[%clk 0:00:02.2]} 70. Rf5+ {[%clk 0:00:49.6]} 70... Ke7
{[%clk 0:00:02.6]} 71. Rh5 {[%clk 0:00:35.5]} 71... Qa8+ {[%clk 0:00:02.3]} 72.
Kb5 {[%clk 0:00:34.8]} 72... Qb8+ {[%clk 0:00:02.3]} 73. Kc4 {[%clk 0:00:34.6]}
73... Qg8+ {[%clk 0:00:01.7]} 74. Kd3 {[%clk 0:00:31.4]} 74... Qg6 {[%clk
0:00:01.6]} 75. Rf5 {[%clk 0:00:28.4]} 75... Qg3 {[%clk 0:00:01.2]} 76. Kc4
{[%clk 0:00:26.8]} 76... Ne1 {[%clk 0:00:01.6]} 77. Re5+ {[%clk 0:00:25.1]}
77... Kf7 {[%clk 0:00:01.5]} 78. Rf5+ {[%clk 0:00:25.5]} 78... Kg7 {[%clk
0:00:02]} 79. e5 {[%clk 0:00:23.8]} 79... Kh6 {[%clk 0:00:02.2]} 80. Rf6+ {[%clk
0:00:23.8]} 80... Kg7 {[%clk 0:00:02.1]} 81. Ne6+ {[%clk 0:00:23.3]} 81... Kh7
{[%clk 0:00:01.7]} 82. Nxf4 {[%clk 0:00:21.1]} 82... Qf3 {[%clk 0:00:01.2]} 83.
Rf7+ {[%clk 0:00:19.6]} 1-0

[Event "Early-Titled-Tuesday-Blitz-July-09-2024"]
[Site "Chess.com"]
[Date "2024.07.09"]
[Round "6"]
[White "Meri-Arabidze"]
[Black "BogdanDeac"]
[Result "1/2-1/2"]
[WhiteElo "2695"]
[BlackElo "3000"]
[TimeControl "180+1"]
[EndTime "9:11:13 PDT"]
[Termination "Game drawn by repetition"]

1. d4 {[%clk 0:03:00.9]} 1... Nf6 {[%clk 0:02:59.9]} 2. c4 {[%clk 0:03:01.5]}
2... e6 {[%clk 0:02:59.8]} 3. Nc3 {[%clk 0:03:02]} 3... Bb4 {[%clk 0:02:59.3]}
4. f3 {[%clk 0:03:02.5]} 4... c5 {[%clk 0:02:57.2]} 5. d5 {[%clk 0:03:02.6]}
5... b5 {[%clk 0:02:57.4]} 6. e4 {[%clk 0:03:02.8]} 6... d6 {[%clk 0:02:57.8]}
7. Ne2 {[%clk 0:02:59.4]} 7... bxc4 {[%clk 0:02:56.8]} 8. Nf4 {[%clk 0:02:58.8]}
8... e5 {[%clk 0:02:54.4]} 9. Ne2 {[%clk 0:02:58.9]} 9... Nh5 {[%clk 0:02:54.2]}
10. g4 {[%clk 0:02:52.2]} 10... Bxc3+ {[%clk 0:02:28.6]} 11. bxc3 {[%clk
0:02:45.9]} 11... Qh4+ {[%clk 0:02:20.5]} 12. Kd2 {[%clk 0:02:45.6]} 12... Nf4
{[%clk 0:01:57]} 13. Nxf4 {[%clk 0:02:35.4]} 13... exf4 {[%clk 0:01:57.9]} 14.
Kc2 {[%clk 0:02:31.7]} 14... h5 {[%clk 0:01:55.6]} 15. Bxf4 {[%clk 0:02:21.3]}
15... Qf6 {[%clk 0:01:54.5]} 16. Bg3 {[%clk 0:02:04.5]} 16... hxg4 {[%clk
0:01:53.2]} 17. fxg4 {[%clk 0:02:04.8]} 17... Qg6 {[%clk 0:01:48.9]} 18. Bxc4
{[%clk 0:02:00.6]} 18... Bxg4 {[%clk 0:01:18.9]} 19. Qd3 {[%clk 0:01:52.5]}
19... Nd7 {[%clk 0:01:18.2]} 20. Bb5 {[%clk 0:01:33.4]} 20... c4 {[%clk
0:00:42.3]} 21. Qd4 {[%clk 0:01:15.4]} 21... O-O {[%clk 0:00:29]} 22. Bxd7
{[%clk 0:00:29.3]} 22... Bxd7 {[%clk 0:00:26.9]} 23. Rhg1 {[%clk 0:00:29.9]}
23... Rfe8 {[%clk 0:00:20.8]} 24. Bxd6 {[%clk 0:00:24.3]} 24... Bg4 {[%clk
0:00:04.2]} 25. Be5 {[%clk 0:00:11.2]} 25... f6 {[%clk 0:00:03.4]} 26. h3 {[%clk
0:00:10.1]} 26... Rxe5 {[%clk 0:00:01.8]} 27. Rxg4 {[%clk 0:00:09.7]} 27... Qh6
{[%clk 0:00:02.3]} 28. Rag1 {[%clk 0:00:09]} 28... g5 {[%clk 0:00:02.6]} 29. h4
{[%clk 0:00:05.5]} 29... Kf7 {[%clk 0:00:01.8]} 30. hxg5 {[%clk 0:00:05.3]}
30... Qh2+ {[%clk 0:00:02]} 31. R1g2 {[%clk 0:00:05.9]} 31... Qh1 {[%clk
0:00:02]} 32. gxf6 {[%clk 0:00:05.5]} 32... Rb8 {[%clk 0:00:02.4]} 33. Rg7+
{[%clk 0:00:05.3]} 33... Ke8 {[%clk 0:00:02.9]} 34. Rg8+ {[%clk 0:00:05.1]}
34... Kf7 {[%clk 0:00:02.3]} 35. Rxb8 {[%clk 0:00:03]} 35... Qxg2+ {[%clk
0:00:02]} 36. Kb1 {[%clk 0:00:02.5]} 36... Qxe4+ {[%clk 0:00:02.1]} 37. Qxe4
{[%clk 0:00:02.5]} 37... Rxe4 {[%clk 0:00:03]} 38. d6 {[%clk 0:00:02.1]} 38...
Re1+ {[%clk 0:00:03.1]} 39. Kc2 {[%clk 0:00:02]} 39... Re2+ {[%clk 0:00:03.6]}
40. Kd1 {[%clk 0:00:02.5]} 40... Re6 {[%clk 0:00:03.6]} 41. Rb7+ {[%clk
0:00:02.1]} 41... Kxf6 {[%clk 0:00:03.8]} 42. Rxa7 {[%clk 0:00:02.4]} 42...
Rxd6+ {[%clk 0:00:04.2]} 43. Kc2 {[%clk 0:00:03.3]} 43... Ke6 {[%clk 0:00:03.8]}
44. Rc7 {[%clk 0:00:03.4]} 44... Kd5 {[%clk 0:00:03.8]} 45. a4 {[%clk
0:00:03.2]} 45... Ra6 {[%clk 0:00:04]} 46. Rd7+ {[%clk 0:00:03]} 46... Kc6
{[%clk 0:00:04.1]} 47. Rd4 {[%clk 0:00:02.3]} 47... Rxa4 {[%clk 0:00:04.7]} 48.
Kb2 {[%clk 0:00:02.7]} 48... Kc5 {[%clk 0:00:05.1]} 49. Rh4 {[%clk 0:00:02.8]}
49... Ra7 {[%clk 0:00:05.4]} 50. Rh5+ {[%clk 0:00:03.2]} 50... Kb6 {[%clk
0:00:05.7]} 51. Rh6+ {[%clk 0:00:03.8]} 51... Kb5 {[%clk 0:00:06.1]} 52. Rh5+
{[%clk 0:00:04.3]} 52... Ka4 {[%clk 0:00:06.5]} 53. Rh4 {[%clk 0:00:03.6]} 53...
Rb7+ {[%clk 0:00:06.5]} 54. Kc2 {[%clk 0:00:04]} 54... Rc7 {[%clk 0:00:06.4]}
55. Rg4 {[%clk 0:00:04.4]} 55... Ka3 {[%clk 0:00:06.3]} 56. Rg8 {[%clk
0:00:03.2]} 56... Ka4 {[%clk 0:00:06.1]} 57. Rg4 {[%clk 0:00:03.3]} 57... Kb5
{[%clk 0:00:05.9]} 58. Rg5+ {[%clk 0:00:03.6]} 58... Rc5 {[%clk 0:00:05.9]} 59.
Rg4 {[%clk 0:00:02.8]} 59... Rf5 {[%clk 0:00:05.2]} 60. Kb2 {[%clk 0:00:02]}
60... Re5 {[%clk 0:00:04.1]} 61. Rh4 {[%clk 0:00:01.2]} 61... Rd5 {[%clk
0:00:04.4]} 62. Rg4 {[%clk 0:00:01.3]} 62... Rd2+ {[%clk 0:00:04.6]} 63. Ka3
{[%clk 0:00:01.8]} 63... Rd5 {[%clk 0:00:04.7]} 64. Kb2 {[%clk 0:00:02.1]} 64...
Re5 {[%clk 0:00:04.9]} 65. Rh4 {[%clk 0:00:01.8]} 65... Rg5 {[%clk 0:00:05]} 66.
Rf4 {[%clk 0:00:02]} 66... Rh5 {[%clk 0:00:05.5]} 67. Re4 {[%clk 0:00:02.3]}
67... Rh2+ {[%clk 0:00:05.5]} 68. Ka3 {[%clk 0:00:02.6]} 68... Rh5 {[%clk
0:00:05.9]} 69. Kb2 {[%clk 0:00:02.4]} 69... Rd5 {[%clk 0:00:05.4]} 70. Rf4
{[%clk 0:00:02.2]} 70... Rc5 {[%clk 0:00:05.9]} 71. Rg4 {[%clk 0:00:02.4]} 71...
Rc6 {[%clk 0:00:05.9]} 72. Rh4 {[%clk 0:00:02.3]} 72... Re6 {[%clk 0:00:05.8]}
73. Rg4 {[%clk 0:00:02.2]} 73... Rd6 {[%clk 0:00:05.7]} 74. Rh4 {[%clk
0:00:02.6]} 74... Rd7 {[%clk 0:00:06.1]} 75. Rg4 {[%clk 0:00:02.8]} 75... Kc5
{[%clk 0:00:06.1]} 76. Rg5+ {[%clk 0:00:03.2]} 76... Rd5 {[%clk 0:00:05.3]} 77.
Rg4 {[%clk 0:00:04.1]} 77... Rd2+ {[%clk 0:00:04.5]} 78. Ka3 {[%clk 0:00:04.2]}
78... Rd5 {[%clk 0:00:04.2]} 79. Kb2 {[%clk 0:00:04.2]} 79... Kb5 {[%clk
0:00:03.6]} 80. Rh4 {[%clk 0:00:04.1]} 80... Rf5 {[%clk 0:00:03.4]} 81. Rg4
{[%clk 0:00:04.4]} 81... Rf3 {[%clk 0:00:03.3]} 82. Rh4 {[%clk 0:00:03.7]} 82...
Re3 {[%clk 0:00:03.6]} 83. Rg4 {[%clk 0:00:04]} 83... Rh3 {[%clk 0:00:03.7]} 84.
Rf4 {[%clk 0:00:03.6]} 84... Rg3 {[%clk 0:00:04.1]} 85. Re4 {[%clk 0:00:03.8]}
85... Rf3 {[%clk 0:00:04.4]} 86. Rh4 {[%clk 0:00:03.9]} 86... Rf2+ {[%clk
0:00:04.4]} 87. Ka3 {[%clk 0:00:03.8]} 87... Rf5 {[%clk 0:00:05]} 88. Kb2 {[%clk
0:00:04]} 88... Kc5 {[%clk 0:00:04.9]} 89. Rg4 {[%clk 0:00:04]} 89... Rf3 {[%clk
0:00:04.1]} 90. Rh4 {[%clk 0:00:04.2]} 90... Re3 {[%clk 0:00:04]} 91. Rh5+
{[%clk 0:00:04.4]} 91... Kc6 {[%clk 0:00:03.8]} 92. Rh4 {[%clk 0:00:04.3]} 92...
Kb5 {[%clk 0:00:03.9]} 93. Rg4 {[%clk 0:00:03.9]} 93... Rh3 {[%clk 0:00:03.3]}
94. Rf4 {[%clk 0:00:04.1]} 94... Re3 {[%clk 0:00:03.2]} 95. Rg4 {[%clk
0:00:04.2]} 1/2-1/2